bitfinex/quotes_ETHUSD_20241223
["timestamp","ask_amount","ask_price","bid_price","bid_amount"]
[1734931633720,3.00942,3322.9,3322.4,0.8148]
[1734931634601,3.00961,3322.7,3322.4,0.8148]
[1734931634816,0.55,3323.1,3322.4,0.8148]
[1734931634995,3.00969,3322.6,3322.4,0.8148]
[1734931635796,3.55941,3322.9,3322.2,1.25320197]
[1734931636010,3.00996,3322.3,3322.2,1.25320197]
[1734931636208,3.55996,3322.3,3322.2,1.25320197]
[1734931637212,3.55996,3322.3,3322.2,1.04327556]
[1734931638192,3.55996,3322.3,3322.1,1.04327556]
[1734931638395,3.56005,3322.2,3322.1,1.04327556]
[1734931638648,3.56023,3322.0,3321.9,1.97e-06]
[1734931639141,4.38043,3322.0,3321.9,1.97e-06]
[1734931639439,3.0105,3321.7,3321.6,1.88147928]
[1734931639743,3.5605,3321.7,3321.6,1.88147928]
[1734931639951,5.09597648,3321.7,3321.6,1.88147928]
[1734931640740,3.01096,3321.2,3320.5,0.7851]
[1734931641529,3.01096,3321.2,3320.5,3.7851]
[1734931641845,3.55226483,3320.8,3320.6,1.56509635]
[1734931642046,0.90522648,3320.7,3320.6,1.56509635]
[1734931642248,4.37166483,3321.2,3320.6,1.56509635]
[1734931642410,3.01127,3320.9,3320.6,1.56509635]
[1734931642609,3.01132,3320.8,3320.6,1.56509635]
[1734931643146,3.01141,3320.7,3320.6,1.56509635]
[1734931643343,3.01155,3320.6,3320.2,3.0]
[1734931643518,3.01155,3320.6,3319.8,3.0]
[1734931643703,3.01123,3320.9,3319.8,3.0]
[1734931643899,3.01169,3320.4,3319.8,3.0]
[1734931644133,3.01169,3320.4,3319.5,1.88147928]
[1734931644903,3.01169,3320.4,3319.3,3.96488735]
[1734931645431,3.01169,3320.4,3319.4,3.0]
[1734931646005,0.8168,3320.3,3319.4,3.0]
[1734931646206,3.0122,3319.9,3319.2,2.64937928]
[1734931646521,3.0125,3319.5,3319.2,2.64937928]
[1734931647027,3.01268,3319.3,3319.2,1.88147928]
[1734931647466,0.55,3319.4,3318.8,0.7832]
[1734931647663,5.77624067,3319.5,3318.8,0.7832]
[1734931648220,3.01255,3319.5,3318.8,0.7832]
[1734931648568,3.01153,3320.6,3318.8,0.7832]
[1734931648569,3.01126,3320.9,3319.4,3.01254]
[1734931648870,5.70922369,3321.0,3319.6,3.7832]
[1734931649021,3.01149,3320.7,3319.6,0.7832]
[1734931649423,5.70922369,3321.0,3319.6,0.7832]
[1734931649667,3.01145,3320.7,3319.6,0.7832]
[1734931650031,3.01151,3320.6,3319.6,0.7832]
[1734931650238,0.55,3320.8,3319.6,0.7832]
[1734931650451,3.01171,3320.4,3319.6,0.7832]
[1734931651266,0.55,3320.6,3319.6,0.7832]
[1734931651765,3.5615,3320.6,3319.6,0.7832]
[1734931651965,3.01161,3320.5,3319.6,0.7832]
[1734931652973,3.01132,3320.8,3319.6,3.0]
[1734931653277,3.01132,3320.8,3319.7,0.7871]
[1734931654330,0.55,3320.9,3319.7,0.7871]
[1734931654573,3.01161,3320.5,3319.7,0.7871]
[1734931656031,3.01169,3320.4,3319.7,0.7871]
[1734931656366,3.55953171,3320.6,3319.7,0.7871]
[1734931656668,3.0118,3320.3,3319.7,0.7871]
[1734931657707,0.98761317,3320.9,3319.7,0.7871]
[1734931657870,0.55,3320.9,3319.7,0.7871]
[1734931658722,3.01141,3320.7,3319.7,0.7871]
[1734931659902,3.01151,3320.6,3319.7,0.7871]
[1734931660893,3.0117,3320.4,3319.7,0.7871]
[1734931661208,3.01149,3320.7,3319.7,0.7871]
[1734931661705,0.55,3320.9,3319.7,0.7871]
[1734931661706,3.0115,3320.6,3319.7,0.7871]
[1734931662530,3.01159,3320.5,3319.7,0.7871]
[1734931664027,3.01199,3320.1,3319.7,0.7871]
[1734931664339,3.01177,3320.3,3319.7,0.7871]
[1734931666025,3.01159,3320.5,3319.7,0.7871]
[1734931666253,0.55,3320.9,3319.7,0.7871]
[1734931666438,0.55,3320.6,3319.7,0.7871]
[1734931666604,3.0115,3320.6,3319.7,0.7871]
[1734931667002,3.0116,3320.5,3319.7,0.7871]
[1734931667214,3.01169,3320.4,3319.7,0.7871]
[1734931667420,3.01178,3320.3,3319.7,0.7871]
[1734931667937,0.30115,3320.6,3319.7,0.7871]
[1734931667938,3.01204,3320.1,3319.7,0.7871]
[1734931668103,3.01159,3320.5,3319.7,0.7871]
[1734931668104,3.0121,3320.0,3319.7,0.7871]
[1734931669386,0.55,3320.2,3319.7,0.7871]
[1734931669802,3.56187,3320.2,3319.7,0.7871]
[1734931670230,3.01166,3320.5,3319.7,0.7871]
[1734931672934,3.01209,3320.0,3318.8,0.8118]
[1734931673242,3.01209,3320.0,3318.9,0.8118]
[1734931673405,2.76304187,3320.3,3319.2,3.01274]
[1734931673606,2.76304187,3320.3,3319.3,0.8118]
[1734931673997,3.01188,3320.2,3319.3,0.8118]
[1734931674196,3.58937219,3320.2,3319.3,0.8118]
[1734931675933,0.57749219,3320.2,3319.3,0.8118]
[1734931676118,2.76304187,3320.3,3319.3,0.8118]
[1734931676525,5.77483187,3320.3,3319.3,0.8118]
[1734931677143,3.01179,3320.3,3319.3,0.8118]
[1734931680323,3.01139,3320.8,3319.6,3.01238]
[1734931680324,3.01133,3320.8,3319.6,3.01238]
[1734931680636,3.01095,3321.2,3319.8,0.7708]
[1734931680637,2.76304187,3321.1,3319.8,0.7708]
[1734931680941,3.01142,3320.7,3319.8,0.7708]
[1734931681525,3.01158,3320.6,3319.8,0.7708]
[1734931681726,3.31304187,3320.7,3319.8,0.7708]
[1734931681928,3.0115,3320.6,3319.8,0.7708]
[1734931682136,3.01191,3320.2,3319.8,0.7708]
[1734931682451,3.313101,3320.2,3319.8,0.7708]
[1734931682800,3.01208,3320.0,3319.4,0.8329]
[1734931684746,0.55,3320.4,3319.4,0.8329]
[1734931684948,4.07554187,3320.7,3319.4,0.8329]
[1734931685152,1.84857098,3320.9,3319.8,3.01215]
[1734931685440,4.85982098,3320.9,3319.9,0.8027]
[1734931685605,5.8685834,3320.9,3319.9,0.8027]
[1734931685800,1.84857098,3320.9,3319.9,3.0]
[1734931686007,8.23885318,3321.1,3320.1,0.7576]
[1734931686008,1.84857098,3321.0,3320.1,0.7576]
[1734931687204,1.84857098,3321.0,3320.2,0.7576]
[1734931687420,1.84857098,3321.6,3320.4,0.7576]
[1734931687829,2.76304187,3321.4,3320.4,0.7576]
[1734931688020,3.01131,3320.9,3320.4,0.7576]
[1734931688345,2.76304187,3321.1,3320.4,0.7576]
[1734931688550,3.36616419,3321.3,3320.4,0.7576]
[1734931688754,3.01097,3321.2,3320.4,0.7576]
[1734931688908,3.01097,3321.2,3320.6,1.25556293]
[1734931689111,3.01097,3321.2,3320.6,4.25556293]
[1734931689307,0.33662642,3321.2,3320.6,4.25556293]
[1734931689560,0.33662642,3321.2,3320.6,1.25556293]
[1734931689561,3.01141,3320.7,3320.6,1.25556293]
[1734931690246,3.01137,3320.8,3320.7,1.04386882]
[1734931690605,0.7899,3321.0,3320.7,1.04386882]
[1734931690802,3.01132,3320.8,3320.7,1.04386882]
[1734931691107,3.01132,3320.8,3320.2,2.6101412]
[1734931691108,3.941442,3320.8,3320.2,2.6101412]
[1734931691306,3.01166,3320.5,3320.2,2.6101412]
[1734931691534,3.01169,3320.4,3320.2,2.6101412]
[1734931692607,3.01151,3320.6,3320.2,2.6101412]
[1734931692806,3.01132,3320.8,3320.1,0.7576]
[1734931693052,3.01114,3321.0,3320.1,0.7576]
[1734931693253,3.58577374,3321.0,3320.1,0.7576]
[1734931693419,1.84857098,3321.2,3320.1,0.7576]
[1734931693753,1.84857098,3321.2,3320.6,0.8175]
[1734931694051,1.84857098,3321.3,3320.6,0.8175]
[1734931694206,1.84857098,3321.3,3320.7,0.7665]
[1734931695152,3.01053,3321.7,3320.9,3.7665]
[1734931695550,1.84857098,3322.0,3321.0,0.7665]
[1734931695761,1.84857098,3322.0,3321.4,0.7665]
[1734931695940,1.84857098,3322.2,3321.4,0.7665]
[1734931697653,5.47476131,3322.3,3321.4,0.7665]
[1734931697654,3.01,3322.3,3321.4,0.7665]
[1734931698013,2.76304187,3322.6,3321.4,0.7665]
[1734931698359,2.76304187,3322.3,3321.4,0.7665]
[1734931698866,3.01005,3322.2,3321.4,0.7665]
[1734931699047,3.01018,3322.1,3321.4,0.7665]
[1734931699421,3.01024,3322.0,3321.4,0.7665]
[1734931700845,0.55,3322.4,3321.4,0.7665]
[1734931701039,3.01004,3322.3,3321.4,0.7665]
[1734931701384,0.301004,3322.2,3321.4,0.7665]
[1734931701682,3.01005,3322.2,3321.4,0.7665]
[1734931702177,0.55,3322.5,3321.4,0.7665]
[1734931702478,3.01015,3322.1,3321.4,0.7665]
[1734931703294,0.55,3322.5,3321.4,0.7665]
[1734931703440,3.00996,3322.3,3321.4,0.7665]
[1734931703642,3.00976,3322.6,3321.4,0.7665]
[1734931703948,5.77253187,3322.9,3321.7,3.0]
[1734931704291,3.00951,3322.8,3321.8,0.7929]
[1734931705086,0.84496029,3322.9,3321.8,0.7929]
[1734931705087,3.00962,3322.7,3321.8,0.7929]
[1734931705447,3.00916,3323.2,3322.0,3.01021]
[1734931705774,1.84857098,3323.4,3322.3,0.7929]
[1734931706085,3.00889,3323.5,3322.1,5.76304187]
[1734931706086,3.00889,3323.5,3322.5,0.7929]
[1734931706289,0.383739,3323.4,3322.5,0.7929]
[1734931707595,3.00889,3323.5,3322.5,0.7929]
[1734931708900,0.55,3323.9,3322.5,0.7929]
[1734931709220,3.00869,3323.8,3322.8,0.7929]
[1734931710092,3.83671,3324.3,3322.9,0.7929]
[1734931710093,0.8285,3324.3,3322.9,0.7929]
[1734931710293,3.00843,3324.0,3322.9,0.7929]
[1734931712191,2.93524627,3324.4,3322.9,0.7929]
[1734931712410,3.00831,3324.2,3323.2,0.8052]
[1734931712990,3.00835,3324.1,3323.2,0.8052]
[1734931714308,0.1722044,3324.4,3323.2,0.8052]
[1734931715591,3.00818,3324.3,3323.2,0.8052]
[1734931715921,3.00835,3324.1,3323.2,0.8052]
[1734931716124,3.00815,3324.3,3323.2,0.8052]
[1734931716292,3.1802744,3324.4,3323.2,0.8052]
[1734931716620,3.00842,3324.1,3323.2,0.8052]
[1734931716786,3.00849,3324.0,3323.2,0.8052]
[1734931717895,0.55,3324.3,3323.2,0.8052]
[1734931718401,3.00872,3323.7,3323.2,0.8052]
[1734931718909,3.00891,3323.5,3323.2,0.8052]
[1734931719511,3.00897,3323.4,3323.2,0.8052]
[1734931720230,3.00881,3323.6,3323.2,0.8052]
[1734931720531,3.00891,3323.5,3323.2,0.8052]
[1734931721082,3.00851,3323.9,3323.2,0.8052]
[1734931721287,3.00898,3323.4,3323.2,0.8052]
[1734931721715,3.00879,3323.6,3323.2,0.8052]
[1734931721887,0.300851,3323.8,3323.2,0.8052]
[1734931722084,0.55,3323.9,3322.9,0.8317]
[1734931722288,3.00941,3323.0,3322.9,0.8317]
[1734931722685,3.009,3323.4,3322.9,0.8317]
[1734931722891,3.00881,3323.6,3322.9,0.8317]
[1734931723242,0.9981044,3324.4,3322.9,0.8317]
[1734931723403,3.00842,3324.0,3322.9,0.8317]
[1734931723591,3.00852,3323.9,3323.0,0.8317]
[1734931723790,3.00872,3323.7,3323.0,0.8317]
[1734931724418,3.00842,3324.0,3323.0,0.8317]
[1734931724618,3.00854,3323.9,3323.0,0.8317]
[1734931724823,3.00861,3323.8,3323.0,0.8317]
[1734931726302,3.00871,3323.7,3323.0,0.8317]
[1734931726534,3.85981287,3323.7,3323.0,0.8317]
[1734931726741,3.85981287,3323.7,3322.3,1.204163]
[1734931726742,0.55,3323.6,3322.4,0.819]
[1734931726922,3.00942,3322.9,3322.4,0.819]
[1734931728415,3.00926,3323.1,3322.4,0.819]
[1734931729239,3.00933,3323.0,3322.4,0.819]
[1734931729894,0.55,3323.6,3322.4,0.819]
[1734931730094,3.00887,3323.5,3322.4,0.819]
[1734931730449,0.55,3323.4,3322.4,0.819]
[1734931730624,3.00919,3323.2,3322.4,0.819]
[1734931732411,3.00926,3323.1,3322.4,0.819]
[1734931734330,3.00907,3323.3,3322.4,0.819]
[1734931735627,0.44098129,3323.6,3322.4,0.819]
[1734931735628,3.00914,3323.2,3322.4,0.819]
[1734931735824,3.00941,3323.0,3322.4,0.819]
[1734931736041,3.00942,3322.9,3322.4,0.819]
[1734931736371,3.00975,3322.6,3322.4,0.819]
[1734931736574,3.00975,3322.6,3321.3,13.24634293]
[1734931736575,3.00978,3322.5,3321.6,1.20441]
[1734931736870,3.55914,3323.2,3321.7,0.7668]
[1734931737071,2.76304187,3323.1,3321.7,0.7668]
[1734931737756,3.0096,3322.7,3321.7,0.7668]
[1734931738537,3.00976,3322.6,3321.7,0.7668]
[1734931738763,3.00936,3323.0,3321.6,1.20441]
[1734931738764,3.00933,3323.0,3321.9,3.0]
[1734931739094,5.77231187,3323.1,3322.0,3.8316]
[1734931739398,5.77231187,3323.1,3322.1,0.8316]
[1734931740101,3.00933,3323.0,3322.1,0.8316]
[1734931741899,0.57723719,3323.0,3322.1,0.8316]
[1734931742071,3.00995,3322.4,3322.1,0.8316]
[1734931742391,3.00997,3322.3,3322.1,0.8316]
[1734931742601,2.76304187,3322.7,3322.1,0.8316]
[1734931743185,5.77234187,3323.1,3322.1,0.8316]
[1734931743360,2.76304187,3323.1,3322.2,3.0]
[1734931743764,2.76304187,3323.1,3322.3,0.8058]
[1734931745340,2.76304187,3323.5,3322.3,0.8058]
[1734931746213,2.76304187,3323.5,3322.3,3.00993]
[1734931746357,2.76304187,3323.5,3322.5,0.7891]
[1734931746989,3.03934606,3323.5,3322.5,0.7891]
[1734931747870,3.00922,3323.2,3322.5,0.7891]
[1734931748071,3.00921,3323.2,3322.5,0.7891]
[1734931748275,3.03934606,3323.5,3322.5,0.7891]
[1734931748477,3.00899,3323.4,3322.5,0.7891]
[1734931749137,2.76304187,3323.5,3322.5,0.7891]
[1734931749312,2.76304187,3323.9,3322.2,0.7891]
[1734931749611,2.76304187,3323.9,3322.9,0.7852]
[1734931750105,2.76304187,3323.9,3323.0,0.7852]
[1734931750302,2.76304187,3323.9,3323.2,3.0]
[1734931750511,2.76304187,3323.9,3323.3,0.7852]
[1734931751168,3.00861,3323.8,3323.3,0.7852]
[1734931751379,1.84857098,3324.2,3323.3,0.7852]
[1734931751380,2.76304187,3323.6,3323.3,0.7852]
[1734931752383,5.77187187,3323.6,3323.3,0.7852]
[1734931752716,2.76304187,3323.6,3323.3,0.7852]
[1734931753388,2.76304187,3323.9,3323.3,0.7852]
[1734931753588,3.00864,3323.8,3323.3,0.7852]
[1734931753991,5.77183187,3323.6,3323.3,0.7852]
[1734931754412,3.00896,3323.4,3322.8,4.25556293]
[1734931754615,3.00896,3323.4,3322.9,0.7567]
[1734931755531,2.76304187,3323.6,3323.0,3.0]
[1734931755734,2.76304187,3323.9,3322.9,0.7567]
[1734931755936,2.76304187,3323.9,3323.1,0.7904]
[1734931757399,2.76304187,3323.9,3323.3,3.0]
[1734931758317,2.76304187,3323.9,3323.4,1.04142215]
[1734931759591,2.76304187,3323.9,3323.2,0.7904]
[1734931760834,2.76304187,3323.9,3323.4,3.0]
[1734931761730,2.76304187,3323.9,3323.5,0.8006]
[1734931763505,5.77129187,3324.2,3323.5,0.8006]
[1734931765632,2.76304187,3324.2,3323.5,0.8006]
[1734931766738,3.00834,3324.1,3323.5,0.8006]
[1734931769740,3.00846,3324.0,3323.5,0.8006]
[1734931770249,5.77129187,3324.2,3323.5,0.8006]
[1734931773110,2.76304187,3324.2,3323.5,0.8006]
[1734931773337,3.00848,3324.0,3323.5,0.8006]
[1734931773538,3.00854,3323.9,3323.5,0.8006]
[1734931775349,3.00834,3324.1,3323.5,0.8006]
[1734931775519,0.1722044,3324.4,3323.5,0.8006]
[1734931775718,3.00816,3324.3,3323.5,0.8006]
[1734931781058,3.00824,3324.2,3323.5,0.8006]
[1734931781357,3.00834,3324.1,3323.5,0.8006]
[1734931782525,3.00844,3324.0,3323.5,0.8006]
[1734931786367,3.00821,3324.3,3323.5,0.8006]
[1734931788150,0.1722044,3324.4,3323.5,0.8006]
[1734931788357,3.0083,3324.2,3323.5,0.8006]
[1734931790078,3.00858,3323.9,3323.5,0.8006]
[1734931790272,3.58574219,3323.9,3323.5,0.8006]
[1734931790491,3.00858,3323.9,3323.5,0.8006]
[1734931790656,3.00858,3323.9,3323.6,1.04105327]
[1734931791574,3.00833,3324.1,3323.6,1.04105327]
[1734931791749,3.00833,3324.1,3323.5,0.8006]
[1734931793889,3.31304187,3324.3,3323.5,0.8006]
[1734931794073,3.00842,3324.0,3323.5,0.8006]
[1734931794950,2.38195271,3324.2,3323.5,0.8006]
[1734931795443,3.00834,3324.1,3323.5,0.8006]
[1734931796075,3.00834,3324.1,3323.6,2.60678212]
[1734931796274,3.87867346,3324.1,3323.6,2.60678212]
[1734931796783,3.00849,3324.0,3323.6,2.60678212]
[1734931796986,3.00849,3324.0,3323.5,0.8006]
[1734931797388,5.77153187,3324.0,3323.5,0.8006]
[1734931798295,2.76304187,3324.0,3323.5,0.8006]
[1734931798602,3.00887,3323.5,3323.4,1.25556293]
[1734931798747,4.36467,3323.5,3323.4,1.25556293]
[1734931799270,3.81467,3323.5,3323.4,1.25556293]
[1734931799473,3.81467,3323.5,3322.9,1.25556293]
[1734931799645,3.00887,3323.5,3322.9,1.25556293]
[1734931799847,3.00887,3323.5,3323.0,0.8041]
[1734931800575,5.77178187,3323.7,3323.0,0.8041]
[1734931801490,2.76304187,3323.4,3322.8,4.26099872]
[1734931801707,3.00916,3323.2,3322.8,4.26099872]
[1734931801875,0.7816,3323.5,3322.7,2.52199744]
[1734931801876,3.00951,3322.8,3322.7,2.52199744]
[1734931802079,5.77255187,3322.8,3322.7,2.52199744]
[1734931802748,3.00951,3322.8,3322.7,2.52199744]
[1734931803474,3.00951,3322.8,3322.5,1.04362723]
[1734931804588,3.00951,3322.8,3322.4,0.7971]
[1734931805180,0.55,3323.0,3322.4,0.7971]
[1734931805363,3.55933,3323.0,3322.4,0.7971]
[1734931805563,3.00933,3323.0,3322.4,0.7971]
[1734931806399,2.76304187,3323.1,3322.4,0.7971]
[1734931807394,1.89492788,3323.4,3322.7,3.0]
[1734931807599,1.89492788,3323.4,3322.8,0.8177]
[1734931807802,1.89492788,3323.4,3322.1,0.15679513]
[1734931807803,1.89492788,3323.4,3323.0,0.8177]
[1734931808147,7.66647975,3323.9,3323.0,0.8177]
[1734931808464,4.65796975,3323.9,3323.0,0.8177]
[1734931808686,2.76304187,3323.6,3323.0,0.8177]
[1734931808994,4.65796975,3323.9,3323.0,0.8177]
[1734931809496,2.76304187,3323.9,3323.0,0.8177]
[1734931810184,3.00823,3324.3,3323.0,0.8177]
[1734931810498,3.00823,3324.3,3323.3,0.757]
[1734931811257,3.9538644,3324.4,3323.6,0.757]
[1734931815820,0.1722044,3324.4,3323.4,0.8302]
[1734931816002,0.1722044,3324.4,3323.9,0.8302]
[1734931816383,0.1722044,3324.4,3324.1,0.8302]
[1734931817236,0.1722044,3324.4,3324.1,3.8302]
[1734931819183,0.1722044,3324.4,3324.1,6.83852]
[1734931819706,0.1722044,3324.4,3324.1,3.8302]
[1734931819925,0.1722044,3324.4,3324.3,6.77865]
[1734931820219,1.89492788,3325.6,3325.4,0.7705]
[1734931820422,1.89492788,3325.6,3325.5,2.99832573]
[1734931821130,1.89492788,3325.6,3325.4,0.7705]
[1734931821430,1.89492788,3326.2,3325.4,0.7705]
[1734931821937,0.7564,3326.1,3325.1,0.7705]
[1734931822285,0.7564,3326.1,3324.3,3.86010673]
[1734931822286,1.89492788,3326.2,3326.1,3.7705]
[1734931823013,3.76188,3327.3,3326.1,3.7705]
[1734931823014,5.65680788,3327.3,3326.1,3.7705]
[1734931823542,0.55,3327.1,3326.1,3.7705]
[1734931823720,3.00582,3326.9,3325.7,0.8087]
[1734931824700,0.55,3326.8,3325.7,0.8087]
[1734931825104,3.55591,3326.8,3325.7,0.8087]
[1734931827198,3.55591,3326.8,3325.7,3.8087]
[1734931827733,0.56568079,3327.2,3326.2,0.8087]
[1734931828032,3.00571,3327.0,3326.2,0.8087]
[1734931828253,0.7804,3327.3,3325.9,0.8087]
[1734931828847,3.00633,3326.4,3325.9,0.8087]
[1734931829006,0.378673,3326.3,3325.9,0.8087]
[1734931829207,0.7804,3326.5,3325.9,0.8087]
[1734931829817,3.78657,3326.5,3325.9,0.8087]
[1734931831110,0.7804,3326.5,3325.9,0.8087]
[1734931831722,0.55,3326.7,3325.9,0.8087]
[1734931831957,3.81124,3326.8,3325.9,0.8087]
[1734931831958,0.8053,3326.8,3325.9,0.8087]
[1734931832108,3.00569,3327.1,3325.9,0.8087]
[1734931832308,3.386819,3327.0,3325.9,0.8087]
[1734931832659,0.8053,3326.9,3325.9,0.8087]
[1734931832945,3.00644,3326.2,3325.6,0.7707]
[1734931833102,3.81174,3326.2,3325.6,0.7707]
[1734931835443,3.00655,3326.1,3325.6,0.7707]
[1734931835648,3.387735,3326.1,3325.6,0.7707]
[1734931836149,0.381185,3326.1,3325.6,0.7707]
[1734931836452,3.81175,3326.2,3325.6,0.7707]
[1734931836622,3.00652,3326.1,3325.6,0.7707]
[1734931838971,0.381099,3327.0,3325.6,0.7707]
[1734931839258,2.76304187,3326.9,3325.6,0.7707]
[1734931839460,3.00632,3326.4,3325.6,0.7707]
[1734931839758,3.54054187,3326.5,3325.6,0.7707]
[1734931840062,3.00694,3325.7,3324.5,0.8154]
[1734931840260,3.78421,3325.9,3324.6,3.00783]
[1734931840427,3.78421,3325.9,3324.7,0.7819]
[1734931840973,3.00671,3325.9,3324.7,3.00773]
[1734931841131,2.76304187,3326.1,3324.9,0.7819]
[1734931841329,3.00674,3325.9,3324.9,0.7819]
[1734931841865,0.8166,3326.3,3325.2,0.8257]
[1734931842014,0.55,3326.4,3325.3,0.8257]
[1734931842367,3.00627,3326.4,3325.3,3.8257]
[1734931842530,3.00627,3326.4,3325.4,0.8257]
[1734931842730,0.55,3326.5,3325.5,0.8257]
[1734931843263,3.00618,3326.5,3325.5,0.8257]
[1734931843562,3.00618,3326.5,3325.6,0.8257]
[1734931844063,3.56184187,3326.9,3325.6,0.8257]
[1734931844360,3.00599,3326.7,3325.6,0.8257]
[1734931845074,0.35618419,3326.8,3325.6,0.8257]
[1734931845075,3.00636,3326.3,3325.6,0.8257]
[1734931845234,2.76304187,3326.6,3325.6,0.8257]
[1734931845422,2.76304187,3326.6,3325.7,0.8257]
[1734931845646,6.38163348,3326.6,3325.7,0.8257]
[1734931846861,3.37556348,3326.6,3325.7,0.8257]
[1734931847067,3.00616,3326.5,3325.7,0.8257]
[1734931847233,6.38163348,3326.6,3325.7,0.8257]
[1734931847435,3.37556348,3326.6,3325.7,0.8257]
[1734931847631,2.76304187,3326.6,3325.7,0.8257]
[1734931847845,3.00627,3326.4,3325.7,0.8257]
[1734931848655,2.76304187,3326.6,3325.7,0.8257]
[1734931848841,3.00667,3326.0,3325.7,0.8257]
[1734931849466,3.57764187,3326.3,3325.7,0.8257]
[1734931849467,6.58405187,3326.3,3325.7,0.8257]
[1734931849671,7.16906989,3326.3,3325.7,0.8257]
[1734931849823,3.34805989,3326.3,3325.7,0.8257]
[1734931850170,2.76304187,3326.3,3325.7,0.8257]
[1734931850379,3.0062,3326.5,3325.7,0.8257]
[1734931852889,3.00626,3326.4,3325.7,0.8257]
[1734931853043,2.76304187,3326.6,3325.7,0.8257]
[1734931853476,3.00636,3326.3,3325.7,0.8257]
[1734931853680,2.76304187,3326.6,3325.7,0.8257]
[1734931853986,3.09434606,3326.6,3325.7,0.8257]
[1734931854185,3.00625,3326.4,3325.7,0.8257]
[1734931854531,2.76304187,3326.2,3325.7,0.8257]
[1734931855427,5.76951187,3326.2,3325.7,0.8257]
[1734931855726,2.76304187,3326.2,3325.7,0.8257]
[1734931856018,2.76304187,3325.9,3325.7,0.8257]
[1734931856393,2.76304187,3325.9,3325.0,0.7912]
[1734931856723,3.0069,3325.7,3325.0,0.7912]
[1734931856923,2.76304187,3325.9,3325.0,0.7912]
[1734931857214,3.00711,3325.5,3325.0,0.7912]
[1734931857418,2.76304187,3325.9,3325.0,0.7912]
[1734931857723,2.76304187,3325.6,3325.0,0.7912]
[1734931858423,3.00715,3325.4,3325.0,0.7912]
[1734931858715,2.76304187,3325.3,3325.0,0.7912]
[1734931858922,3.00742,3325.1,3325.0,0.7912]
[1734931859118,2.76304187,3325.3,3325.0,0.7912]
[1734931859421,5.76971187,3326.0,3325.0,0.7912]
[1734931860228,5.76946187,3326.3,3325.1,0.8232]
[1734931860435,5.76946187,3326.3,3325.3,0.8232]
[1734931860780,3.00647,3326.2,3325.3,0.8232]
[1734931860979,2.76304187,3326.3,3325.3,0.8232]
[1734931862124,5.76947187,3326.3,3325.4,1.03541676]
[1734931862279,5.76947187,3326.3,3325.5,0.7615]
[1734931863183,2.76304187,3326.3,3325.5,0.7615]
[1734931864563,2.76304187,3326.3,3325.6,1.03626497]
[1734931864680,5.76938187,3326.3,3325.7,0.7971]
[1734931865589,2.76304187,3326.3,3325.7,0.7971]
[1734931865812,2.76304187,3326.9,3325.7,0.7971]
[1734931866489,2.76304187,3326.9,3325.9,3.8075]
[1734931866691,5.76890187,3326.9,3326.0,0.8075]
[1734931866895,2.76304187,3326.9,3326.0,0.8075]
[1734931867293,3.00562,3327.1,3326.0,0.8075]
[1734931867512,1.89492788,3327.2,3326.1,3.0]
[1734931867826,1.89492788,3327.2,3326.2,0.8075]
[1734931867997,4.90038788,3327.3,3326.2,0.8075]
[1734931869207,2.76304187,3327.5,3326.4,0.753]
[1734931869426,2.06713228,3327.8,3326.4,0.753]
[1734931869427,2.06713228,3327.8,3326.7,3.0]
[1734931869705,2.06713228,3327.8,3327.0,0.753]
[1734931870523,2.06713228,3327.8,3327.1,0.7711]
[1734931871023,0.1722044,3327.8,3327.1,0.7711]
[1734931872482,0.48991584,3327.8,3327.1,0.7711]
[1734931872684,0.1722044,3327.8,3327.1,0.7711]
[1734931873727,3.0052,3327.6,3327.1,0.7711]
[1734931873901,0.1722044,3327.8,3327.1,0.7711]
[1734931874089,3.1771844,3327.8,3327.1,0.7711]
[1734931874647,0.1722044,3327.8,3327.1,0.7711]
[1734931876328,0.1722044,3327.8,3327.1,3.7711]
[1734931876628,0.1722044,3327.8,3327.2,0.8062]
[1734931879812,0.1722044,3327.8,3326.8,8.98]
[1734931879813,3.00538,3327.4,3326.9,0.7616]
[1734931880145,3.00549,3327.3,3326.9,0.7616]
[1734931880446,3.00554,3327.2,3326.9,0.7616]
[1734931880598,3.00571,3327.0,3326.9,0.7616]
[1734931880794,0.300571,3327.0,3326.7,1.26213422]
[1734931881122,3.00631,3326.4,3326.1,0.8097]
[1734931881509,2.76304187,3326.5,3326.0,1.26213422]
[1734931881708,3.00652,3326.1,3326.0,1.26213422]
[1734931882111,3.00636,3326.3,3326.0,1.26213422]
[1734931882313,3.00652,3326.1,3326.0,1.26213422]
[1734931882498,3.00664,3326.0,3325.8,0.8097]
[1734931882992,3.0067,3325.9,3325.2,0.8097]
[1734931884596,2.76304187,3325.8,3325.2,0.8097]
[1734931884812,3.0074,3325.2,3324.8,0.8097]
[1734931885016,3.00735,3325.2,3324.8,0.8097]
[1734931885251,5.77039187,3325.2,3324.8,0.8097]
[1734931885465,3.00735,3325.2,3324.8,0.8097]
[1734931886469,2.76304187,3324.9,3324.1,0.8097]
[1734931886620,3.00799,3324.5,3324.1,0.8097]
[1734931887319,2.76304187,3324.6,3323.8,2.06843422]
[1734931887552,5.77150187,3324.0,3323.8,1.26213422]
[1734931887716,3.00851,3323.9,3323.2,1.26213422]
[1734931887916,3.009,3323.4,3323.2,1.26213422]
[1734931888515,5.77204187,3323.4,3323.2,1.26213422]
[1734931888977,3.00923,3323.1,3322.4,0.8161]
[1734931889152,3.00935,3323.0,3322.4,0.8161]
[1734931889556,2.76304187,3323.1,3322.4,0.8161]
[1734931889952,5.77229187,3323.1,3322.4,0.8161]
[1734931890260,3.00938,3323.0,3322.4,0.8161]
[1734931890467,3.5520465,3322.9,3321.9,0.7563]
[1734931890821,4.3201465,3323.3,3321.9,3.76654]